fUSD/lending_fUSD_20251212
["ID","MTS","AMOUNT","RATE_DAILY","PERIOD"]
[398294269,1765500663303,-1216.3,0.00035342,2]
[398294270,1765500663312,-463.81,0.00035342,2]
[398294271,1765500663322,-2431.22,0.00035342,2]
[398294272,1765500663333,-246.21,0.00035342,2]
[398294273,1765500663343,-151.0,0.00035363,2]
[398294274,1765500663352,-740.38982778,0.00035363,2]
[398294275,1765500663362,-2961.93,0.000354,30]
[398294276,1765500663374,-813.65,0.000354,14]
[398294277,1765500663388,-728.66,0.000354,14]
[398294278,1765500663398,-150.0,0.00035401,7]
[398294279,1765500663408,-150.0,0.00035401,7]
[398294280,1765500663418,-163.99,0.00035445,120]
[398294281,1765500663427,-168.0,0.00035494,2]
[398294282,1765500663437,-152.0,0.000355,6]
[398294283,1765500663447,-150.0,0.00035507,7]
[398294284,1765500663457,-310.64,0.00035571,2]
[398294285,1765500663468,-421.66083602,0.0003561,120]
[398294286,1765500663479,-1208.83,0.00035612,30]
[398294287,1765500663488,-199.0,0.00035616,32]
[398294288,1765500663497,-600.0,0.00035616,30]
[398294289,1765500663507,-391.10667173,0.00035616,2]
[398294290,1765500663517,-603.4480572,0.00035634,2]
[398294291,1765500663526,-168.0,0.0003564,2]
[398294292,1765500663535,-168.0,0.00035681,2]
[398294293,1765500663545,-150.0,0.00035753,7]
[398294294,1765500663554,-150.0,0.00035753,7]
[398294295,1765500663563,-150.0,0.00035753,7]
[398294296,1765500663573,-150.0,0.00035757,2]
[398294297,1765500663583,-1000.0,0.000358,60]
[398294298,1765500663593,-333.01052974,0.00035812,2]
[398294299,1765500663602,-1346.02056,0.00035888,30]
[398294300,1765500663611,-300.0,0.00035905,10]
[398294301,1765500663621,-189.84591811,0.00035911,2]
[398294302,1765500663630,-767.7842514,0.00035911,2]
[398294303,1765500663639,-150.0,0.0003593,7]
[398294304,1765500663649,-150.0,0.0003593,7]
[398294305,1765500663658,-500.0,0.00035999,45]
[398294306,1765500663667,-500.0,0.00035999,45]
[398294307,1765500663676,-1000.34,0.00036,30]
[398294308,1765500663686,-152.13352037,0.00036,2]
[398294309,1765500663695,-150.0,0.00036062,7]
[398294310,1765500663704,-1346.02056,0.00036088,30]
[398294311,1765500663713,-2500.0,0.00036129,2]
[398294312,1765500663723,-1332.37,0.00036164,120]
[398294313,1765500663732,-600.0,0.00036164,30]
[398294314,1765500663742,-150.0,0.00036164,7]
[398294315,1765500663752,-954.9,0.00036191,2]
[398294316,1765500663761,-168.0,0.00036196,2]
[398294317,1765500663770,-1489.77,0.00036209,2]
[398294318,1765500663780,-614.01,0.00036211,2]
[398294319,1765500663790,-150.0,0.00036247,7]
[398294320,1765500663799,-2546.44,0.00036265,2]
[398294321,1765500663808,-1346.02056,0.00036288,30]
[398294322,1765500663818,-381.69,0.000363,30]
[398294323,1765500663827,-199.0,0.00036301,33]
[398294324,1765500663837,-2546.45,0.00036329,2]
[398294325,1765500663847,-212.73599982,0.00036359,120]
[398294326,1765500663856,-217.89253943,0.00036359,120]
[398294327,1765500663866,-213.87733886,0.00036359,120]
[398294328,1765500663876,-214.56969249,0.00036359,120]
[398294329,1765500663886,-213.87733886,0.00036359,120]
[398294330,1765500663895,-217.21916215,0.00036359,120]
[398294331,1765500663905,-150.0,0.0003637,7]
[398294332,1765500663914,-1213.65754,0.000364,120]
[398294333,1765500663924,-168.0,0.00036401,2]
[398294334,1765500663933,-168.0,0.00036455,2]
[398294335,1765500663943,-150.0,0.00036458,7]
[398294336,1765500663953,-150.0,0.00036458,7]
[398294337,1765500663963,-796.19226871,0.00036459,2]
[398294338,1765500663973,-1346.02056,0.00036488,30]
[398294339,1765500663983,-150.0,0.00036575,7]
[398294340,1765500663992,-300.0,0.00036581,10]
[398294341,1765500664002,-300.0,0.00036581,10]
[398294342,1765500664012,-207.07099855,0.00036582,30]
[398294343,1765500664022,-519.48,0.00036605,2]
[398294344,1765500664031,-1346.02056,0.00036688,30]
[398294345,1765500664040,-659.59,0.00036709,2]
[398294346,1765500664050,-700.0,0.00036712,120]
[398294347,1765500664059,-600.0,0.00036712,30]
[398294348,1765500664070,-1500.0,0.00036714,120]
[398294349,1765500664080,-300.0,0.00036717,10]
[398294350,1765500664090,-5888.0,0.00036718,2]
[398294351,1765500664099,-1000.34,0.0003672,30]
[398294352,1765500664108,-2334.00908332,0.00036753,2]
[398294353,1765500664118,-1596.4618916,0.000368,2]
[398294354,1765500664128,-1937.71118844,0.000368,2]
[398294355,1765500664137,-3006.66262314,0.000368,120]
[398294356,1765500664147,-300.0,0.00036803,10]
[398294357,1765500664156,-677.47847321,0.00036803,30]
[398294358,1765500664166,-500.0,0.00036804,30]
[398294359,1765500664175,-500.0,0.00036804,30]
[398294360,1765500664185,-500.0,0.00036804,30]
[398294361,1765500664195,-751.50131424,0.00036804,30]
[398294362,1765500664205,-500.0,0.00036804,30]
[398294363,1765500664215,-898.07923044,0.00036804,30]
[398294364,1765500664225,-510.79850095,0.00036804,30]
[398294365,1765500664234,-760.95518296,0.00036804,30]
[398294366,1765500664244,-1200.0,0.00036804,30]
[398294367,1765500664254,-1200.0,0.00036804,30]
[398294368,1765500664263,-1200.0,0.00036804,30]
[398294369,1765500664273,-1200.0,0.00036804,30]
[398294370,1765500664283,-1200.0,0.00036804,30]
[398294371,1765500664292,-1200.0,0.00036804,30]
[398294372,1765500664302,-1200.0,0.00036804,30]
[398294373,1765500664312,-1200.0,0.00036804,30]
[398294374,1765500664321,-1200.0,0.00036804,30]
[398294375,1765500664331,-1200.0,0.00036804,30]
[398294376,1765500664340,-1200.0,0.00036804,30]
[398294377,1765500664350,-1200.0,0.00036804,30]
[398294378,1765500664360,-500.0,0.00036804,30]
[398294379,1765500664370,-1200.0,0.00036804,30]
[398294380,1765500664382,-500.0,0.00036804,30]
[398294381,1765500664392,-1200.0,0.00036804,30]
[398294382,1765500664402,-1200.0,0.00036804,30]
[398294383,1765500664412,-500.0,0.00036804,30]
[398294384,1765500664422,-1200.0,0.00036804,30]
[398294385,1765500664432,-500.0,0.00036804,30]
[398294386,1765500664441,-500.0,0.00036804,30]
[398294387,1765500664451,-1200.0,0.00036804,30]
[398294388,1765500664461,-500.0,0.00036804,30]
[398294389,1765500664471,-500.0,0.00036804,30]
[398294390,1765500664481,-1200.0,0.00036804,30]
[398294391,1765500664490,-500.0,0.00036804,30]
[398294392,1765500664499,-500.0,0.00036804,30]
[398294393,1765500664509,-1200.0,0.00036804,30]
[398294394,1765500664518,-500.0,0.00036804,30]
[398294395,1765500664527,-1200.0,0.00036804,30]
[398294396,1765500664536,-500.0,0.00036804,30]
[398294397,1765500664545,-500.0,0.00036804,30]
[398294398,1765500664555,-1200.0,0.00036804,30]
[398294399,1765500664564,-500.0,0.00036804,30]
[398294400,1765500664573,-1200.0,0.00036804,30]
[398294401,1765500664584,-500.0,0.00036804,30]
[398294402,1765500664594,-500.0,0.00036804,30]
[398294403,1765500664603,-1200.0,0.00036804,30]
[398294404,1765500664613,-500.0,0.00036804,30]
[398294405,1765500664622,-1200.0,0.00036804,30]
[398294406,1765500664631,-503.80125504,0.00036804,30]
[398294407,1765500664640,-500.0,0.00036804,30]
[398294408,1765500664651,-1200.0,0.00036804,30]
[398294409,1765500664664,-500.0,0.00036804,30]
[398294410,1765500664673,-1200.0,0.00036804,30]
[398294411,1765500664683,-1852.37640371,0.00036804,30]
[398294412,1765500664693,-274.5052187,0.00036804,2]
[398294413,1765500664703,-300.0,0.00036811,10]
[398294414,1765500664712,-152.0,0.00036817,7]
[398294415,1765500664721,-291.37138013,0.00036822,2]
[398294416,1765500664731,-1666.74,0.00036822,2]
[398294417,1765500664740,-172.45001745,0.00036887,10]
[398294418,1765500664749,-4486.7352,0.00036888,7]
[398294419,1765500664758,-1346.02056,0.00036888,30]
[398294420,1765500664767,-1052.5019999,0.000369,2]
[398294421,1765500664776,-1126.83405994,0.000369,2]
[398294422,1765500664786,-172.0,0.00036919,120]
[398294423,1765500664796,-193.0,0.00036919,120]
[398294424,1765500664806,-3310.86,0.00036938,2]
[398294425,1765500664816,-1649.0,0.00036959,120]
[398294426,1765500664826,-1423.7921065,0.00036971,120]
[398294427,1765500664836,-2641.5,0.00036984,30]
[398294428,1765500664846,-199.0,0.00036986,34]
[398294429,1765500664855,-700.0,0.00036986,120]
[398294430,1765500664865,-1332.37,0.00036986,120]
[398294431,1765500664874,-2776.96,0.00036986,30]
[398294432,1765500664884,-211.45507288,0.00036986,7]
[398294433,1765500664893,-150.0,0.00036986,7]
[398294434,1765500664902,-295.5899606,0.00036986,7]
[398294435,1765500664912,-231.31355191,0.00036986,7]
[398294436,1765500664921,-270.45029082,0.00036986,7]
[398294437,1765500664930,-150.0,0.00036986,7]
[398294438,1765500664940,-186.81901619,0.00036986,7]
[398294439,1765500664950,-150.0,0.00036986,7]
[398294440,1765500664959,-206.80168061,0.00036986,7]
[398294441,1765500664969,-150.0,0.00036986,7]
[398294442,1765500664978,-151.81517344,0.00036986,7]
[398294443,1765500664988,-500.0,0.00036999,45]
[398294444,1765500664997,-500.0,0.00036999,45]
[398294445,1765500665007,-2641.5,0.00036999,30]
[398294446,1765500665017,-2641.5,0.00036999,30]
[398294447,1765500665027,-402051.21066549,0.00037,2]
[398294448,1765500665036,-277659.88938759,0.00037,2]
[398294449,1765500665045,-1806.70543872,0.00037,2]
[398294450,1765500665054,-480.8162296,0.00037,7]
[398294451,1765500665064,-480.8162296,0.00037,30]
[398294452,1765500665073,-164.20277996,0.00037,2]
[398294453,1765500665083,-621.78829552,0.00037005,2]
[398294454,1765500665092,-477.11533868,0.00037005,2]
[398294455,1765500665102,-825.65138265,0.00037007,2]
[398294456,1765500665111,-1346.02056,0.00037088,30]
[398294457,1765500665122,-257.0,0.00037092,120]
[398294458,1765500665135,-2596.0,0.0003718,30]
[398294459,1765500665145,-885.96164008,0.000372,120]
[398294460,1765500665154,-885.96164008,0.000372,120]
[398294461,1765500665163,-885.96164008,0.000372,120]
[398294462,1765500665173,-700.0,0.0003726,120]
[398294463,1765500665182,-1406.01,0.0003726,2]
[398294464,1765500665191,-600.0,0.0003726,30]
[398294465,1765500665201,-1346.02056,0.00037288,30]
[398294466,1765500665211,-333.01052974,0.00037329,2]
[398294467,1765500665221,-7114.1817313,0.00037434,2]
[398294468,1765500665231,-1000.34,0.0003744,30]
[398294469,1765500665243,-1346.02056,0.00037488,30]
[398294470,1765500665256,-700.0,0.00037534,120]
[398294471,1765500665266,-199.0,0.00037671,35]
[398294472,1765500665275,-1346.02056,0.00037688,30]
[398294473,1765500665286,-2641.5,0.00037755,30]
[398294474,1765500665297,-482.37144416,0.00037784,2]
[398294475,1765500665308,-574.84941662,0.00037784,2]
[398294476,1765500665329,-300.0,0.00037784,2]
[398294477,1765500665342,-303.15225682,0.00037784,2]
[398294478,1765500665352,-300.0,0.00037784,2]
[398294479,1765500665363,-302.34110853,0.00037784,2]
[398294480,1765500665379,-300.0,0.00037784,2]
[398294481,1765500665390,-521.61579241,0.00037784,2]
[398294482,1765500665403,-300.0,0.00037784,2]
[398294483,1765500665412,-303.15225682,0.00037784,2]
[398294484,1765500665424,-300.0,0.00037784,2]
[398294485,1765500665433,-302.34110853,0.00037784,2]
[398294486,1765500665443,-300.0,0.00037784,2]
[398294487,1765500665671,-499.63762038,0.00037784,2]
[398294488,1765500665681,-393.69548636,0.00037784,2]
[398294489,1765500665691,-300.0,0.00037784,2]
[398294490,1765500665701,-395.31778294,0.00037784,2]
[398294491,1765500665711,-501.97494401,0.00037784,2]
[398294492,1765500665720,-393.69548636,0.00037784,2]
[398294493,1765500665729,-345.36409427,0.00037784,2]
[398294494,1765500665738,-692.75386933,0.00037784,2]
[398294495,1765500665747,-574.84941662,0.00037784,2]
[398294496,1765500665757,-302.03528524,0.00037784,2]
[398294497,1765500665766,-300.0,0.00037784,2]
[398294498,1765500665776,-303.15225682,0.00037784,2]
[398294499,1765500665785,-300.0,0.00037784,2]
[398294500,1765500665794,-300.0,0.00037784,2]
[398294501,1765500665804,-366.44578911,0.00037784,2]
[398294502,1765500665814,-300.0,0.00037784,2]
[398294503,1765500665824,-300.0,0.00037784,2]
[398294504,1765500665834,-302.34110853,0.00037784,2]
[398294505,1765500665843,-300.0,0.00037784,2]
[398294506,1765500665855,-789.95822971,0.00037784,2]
[398294507,1765500665865,-300.0,0.00037784,2]
[398294508,1765500665874,-300.0,0.00037784,2]
[398294509,1765500665884,-301.82840283,0.00037784,2]
[398294510,1765500665893,-300.0,0.00037784,2]
[398294511,1765500665902,-300.0,0.00037784,2]
[398294512,1765500665912,-508.84461059,0.00037784,2]
[398294513,1765500665922,-300.0,0.00037784,2]
[398294514,1765500665932,-300.0,0.00037784,2]
[398294515,1765500665940,-300.0,0.00037784,2]
[398294516,1765500665949,-593.23310907,0.00037784,2]
[398294517,1765500665958,-362.86119627,0.00037784,2]
[398294518,1765500665967,-300.0,0.00037784,2]
[398294519,1765500665976,-300.0,0.00037784,2]
[398294520,1765500665985,-300.0,0.00037784,2]
[398294521,1765500665995,-300.0,0.00037784,2]
[398294522,1765500666005,-574.84941662,0.00037784,2]
[398294523,1765500666014,-302.03528524,0.00037784,2]
[398294524,1765500666024,-300.0,0.00037784,2]
[398294525,1765500666033,-303.15225682,0.00037784,2]
[398294526,1765500666042,-300.0,0.00037784,2]
[398294527,1765500666051,-300.0,0.00037784,2]
[398294528,1765500666060,-366.44578911,0.00037784,2]
[398294529,1765500666070,-300.0,0.00037784,2]
[398294530,1765500666079,-300.0,0.00037784,2]
[398294531,1765500666088,-302.34110853,0.00037784,2]
[398294532,1765500666097,-300.0,0.00037784,2]
[398294533,1765500666107,-789.95822971,0.00037784,2]
[398294534,1765500666117,-300.0,0.00037784,2]
[398294535,1765500666126,-300.0,0.00037784,2]
[398294536,1765500666136,-301.82840283,0.00037784,2]
[398294537,1765500666149,-300.0,0.00037784,2]
[398294538,1765500666159,-300.0,0.00037784,2]
[398294539,1765500666168,-508.84461059,0.00037784,2]
[398294540,1765500666178,-300.0,0.00037784,2]
[398294541,1765500666187,-300.0,0.00037784,2]
[398294542,1765500666197,-300.0,0.00037784,2]
[398294543,1765500666207,-593.23310907,0.00037784,2]
[398294544,1765500666216,-300.0,0.00037784,2]
[398294545,1765500666226,-362.86119627,0.00037784,2]
[398294546,1765500666235,-300.0,0.00037784,2]
[398294547,1765500666246,-300.0,0.00037784,2]
[398294548,1765500666256,-300.0,0.00037784,2]
[398294549,1765500666265,-574.84941662,0.00037784,2]
[398294550,1765500666274,-302.03528524,0.00037784,2]
[398294551,1765500666284,-317.50408372,0.00037784,2]
[398294552,1765500666294,-303.15225682,0.00037784,2]
[398294553,1765500666306,-300.0,0.00037784,2]
[398294554,1765500666316,-300.0,0.00037784,2]
[398294555,1765500666326,-366.44578911,0.00037784,2]
[398294556,1765500666336,-300.0,0.00037784,2]
[398294557,1765500666347,-381.1854708,0.00037784,2]
[398294558,1765500666356,-302.34110853,0.00037784,2]
[398294559,1765500666366,-300.0,0.00037784,2]
[398294560,1765500666380,-789.95822971,0.00037784,2]
[398294561,1765500666390,-300.0,0.00037784,2]
[398294562,1765500666400,-300.0,0.00037784,2]
[398294563,1765500666410,-301.82840283,0.00037784,2]
[398294564,1765500666422,-300.0,0.00037784,2]
[398294565,1765500666432,-300.0,0.00037784,2]
[398294566,1765500666442,-508.84461059,0.00037784,2]
[398294567,1765500666453,-300.0,0.00037784,2]
[398294568,1765500666465,-300.0,0.00037784,2]
[398294569,1765500666475,-300.0,0.00037784,2]
[398294570,1765500666486,-593.23310907,0.00037784,2]
[398294571,1765500666496,-362.86119627,0.00037784,2]
[398294572,1765500666505,-300.0,0.00037784,2]
[398294573,1765500666514,-300.0,0.00037784,2]
[398294574,1765500666524,-322.92228918,0.00037784,2]
[398294575,1765500666534,-300.0,0.00037784,2]
[398294576,1765500666543,-360.81124635,0.00037784,2]
[398294577,1765500666553,-302.03528524,0.00037784,2]
[398294578,1765500666562,-303.15225682,0.00037784,2]
[398294579,1765500666571,-300.0,0.00037784,2]
[398294580,1765500666581,-300.0,0.00037784,2]
[398294581,1765500666591,-366.44578911,0.00037784,2]
[398294582,1765500666600,-300.0,0.00037784,2]
[398294583,1765500666610,-302.34110853,0.00037784,2]
[398294584,1765500666619,-300.0,0.00037784,2]
[398294585,1765500666628,-789.95822971,0.00037784,2]
[398294586,1765500666638,-300.0,0.00037784,2]
[398294587,1765500666647,-300.0,0.00037784,2]
[398294588,1765500666657,-301.82840283,0.00037784,2]
[398294589,1765500666667,-300.0,0.00037784,2]
[398294590,1765500666676,-300.0,0.00037784,2]
[398294591,1765500666686,-508.84461059,0.00037784,2]
[398294592,1765500666695,-300.0,0.00037784,2]
[398294593,1765500666705,-300.0,0.00037784,2]
[398294594,1765500666714,-300.0,0.00037784,2]
[398294595,1765500666723,-593.23310907,0.00037784,2]
[398294596,1765500666732,-362.86119627,0.00037784,2]
[398294597,1765500666742,-300.0,0.00037784,2]
[398294598,1765500666752,-300.0,0.00037784,2]
[398294599,1765500666762,-300.0,0.00037784,2]
[398294600,1765500666771,-302.03528524,0.00037784,2]
[398294601,1765500666782,-303.15225682,0.00037784,2]
[398294602,1765500666799,-300.0,0.00037784,2]
[398294603,1765500666812,-300.0,0.00037784,2]
[398294604,1765500666822,-366.44578911,0.00037784,2]
[398294605,1765500666832,-300.0,0.00037784,2]
[398294606,1765500666841,-302.34110853,0.00037784,2]
[398294607,1765500666851,-300.0,0.00037784,2]
[398294608,1765500666860,-789.95822971,0.00037784,2]
[398294609,1765500666870,-300.0,0.00037784,2]
[398294610,1765500666880,-598.79475566,0.00037784,2]
[398294611,1765500666889,-301.82840283,0.00037784,2]
[398294612,1765500666898,-300.0,0.00037784,2]
[398294613,1765500666907,-300.0,0.00037784,2]
[398294614,1765500666917,-508.84461059,0.00037784,2]
[398294615,1765500666926,-309.63517069,0.00037784,2]
[398294616,1765500666936,-300.0,0.00037784,2]
[398294617,1765500666946,-300.0,0.00037784,2]
[398294618,1765500666955,-593.23310907,0.00037784,2]
[398294619,1765500666965,-362.86119627,0.00037784,2]
[398294620,1765500666975,-300.0,0.00037784,2]
[398294621,1765500666985,-300.0,0.00037784,2]
[398294622,1765500666994,-300.0,0.00037784,2]
[398294623,1765500667004,-2961.93,0.000378,30]
[398294624,1765500667014,-728.66,0.000378,14]
[398294625,1765500667023,-700.0,0.00037808,120]
[398294626,1765500667033,-1332.37,0.00037808,120]
[398294627,1765500667043,-600.0,0.00037808,30]
[398294628,1765500667053,-653.38,0.00037808,2]
[398294629,1765500667062,-150.0,0.00037808,2]
[398294630,1765500667072,-1216.3,0.00037808,2]
[398294631,1765500667081,-150.0,0.00037808,2]
[398294632,1765500667091,-463.81,0.00037808,2]
[398294633,1765500667100,-170.32,0.00037808,2]
[398294634,1765500667109,-463.81,0.00037808,2]
[398294635,1765500667119,-463.81,0.00037808,2]
[398294636,1765500667128,-2429.22,0.00037808,2]
[398294637,1765500667138,-1216.3,0.00037808,2]
[398294638,1765500667147,-927.25,0.00037808,2]
[398294639,1765500667156,-1213.96,0.00037808,2]
[398294640,1765500667166,-463.81,0.00037808,2]
[398294641,1765500667176,-463.81,0.00037808,2]
[398294642,1765500667185,-463.81,0.00037808,2]
[398294643,1765500667195,-463.81,0.00037808,2]
[398294644,1765500667205,-463.81,0.00037808,2]
[398294645,1765500667214,-227.09878339,0.0003787,120]
[398294646,1765500667223,-200.28718003,0.0003788,2]
[398294647,1765500667232,-1346.02056,0.00037888,30]
[398294648,1765500667242,-1126.83405989,0.00037896,2]
[398294649,1765500667251,-150.0,0.00037911,120]
[398294650,1765500667260,-1500.0,0.00037945,120]
[398294651,1765500667269,-311.0,0.00037973,24]
[398294652,1765500667279,-176.92887097,0.00037999,120]
[398294653,1765500667289,-2000.0,0.00038,120]
[398294654,1765500667298,-1018.61,0.00038,21]
[398294655,1765500667307,-2768.22944124,0.00038,120]
[398294656,1765500667317,-1500.0,0.00038,30]
[398294657,1765500667326,-786.4612301,0.00038,120]
[398294658,1765500667337,-159.72963386,0.00038,120]
[398294659,1765500667347,-700.0,0.00038082,120]
[398294660,1765500667357,-1346.02056,0.00038088,30]
[398294661,1765500667366,-484.22362484,0.000381,33]
[398294662,1765500667380,-1098.15446267,0.0003813,120]
[398294663,1765500667390,-166.66,0.00038131,2]
[398294664,1765500667399,-152.0,0.00038135,8]
[398294665,1765500667409,-220.0,0.00038141,2]
[398294666,1765500667418,-1000.34,0.0003816,120]
[398294667,1765500667428,-703.56,0.00038219,2]
[398294668,1765500667437,-703.56,0.00038219,2]
[398294669,1765500667448,-703.56,0.00038219,2]
[398294670,1765500667457,-584.17,0.00038219,2]
[398294671,1765500667467,-480.43,0.00038219,2]
[398294672,1765500667477,-480.43,0.00038219,2]
[398294673,1765500667487,-480.43,0.00038219,2]
[398294674,1765500667496,-480.43,0.00038219,2]
[398294675,1765500667507,-480.43,0.00038219,2]
[398294676,1765500667516,-959.92,0.00038219,2]
[398294677,1765500667526,-480.32,0.00038219,2]
[398294678,1765500667536,-300.0,0.00038247,24]
[398294679,1765500667545,-1346.02056,0.00038288,30]
[398294680,1765500667555,-506.35474655,0.000383,30]
[398294681,1765500667564,-612.0,0.00038306,2]
[398294682,1765500667574,-199.0,0.00038356,36]
[398294683,1765500667584,-700.0,0.00038356,120]
[398294684,1765500667594,-1000.0,0.00038356,120]
[398294685,1765500667603,-600.0,0.00038356,30]
[398294686,1765500667612,-151.0,0.00038356,120]
[398294687,1765500667622,-151.0,0.00038356,120]
[398294688,1765500667631,-151.0,0.00038356,120]
[398294689,1765500667640,-151.0,0.00038356,120]
[398294690,1765500667649,-151.0,0.00038356,120]
[398294691,1765500667658,-151.0,0.00038356,120]
[398294692,1765500667668,-151.0,0.00038356,120]
[398294693,1765500667678,-151.0,0.00038356,120]
[398294694,1765500667687,-151.0,0.00038356,120]
[398294695,1765500667700,-151.0,0.00038356,120]
[398294696,1765500667710,-151.0,0.00038356,120]
[398294697,1765500667719,-299.017203,0.00038356,120]
[398294698,1765500667728,-3418.631879,0.00038356,56]
[398294699,1765500667738,-3418.631879,0.00038356,56]
[398294700,1765500667747,-3418.631879,0.00038356,56]
[398294701,1765500667756,-3418.631879,0.00038356,56]
[398294702,1765500667765,-3418.631879,0.00038356,56]
[398294703,1765500667775,-3418.631879,0.00038356,56]
[398294704,1765500667784,-3418.631879,0.00038356,56]
[398294705,1765500667794,-3418.631879,0.00038356,56]
[398294706,1765500667803,-3418.631879,0.00038356,56]
[398294707,1765500667813,-3418.631879,0.00038356,56]
[398294708,1765500667823,-3418.631879,0.00038356,56]
[398294709,1765500667832,-3418.631879,0.00038356,56]
[398294710,1765500667843,-3418.631879,0.00038356,56]
[398294711,1765500667852,-3418.631879,0.00038356,56]
[398294712,1765500667862,-3418.631879,0.00038356,56]
[398294713,1765500667872,-3418.631879,0.00038356,56]
[398294714,1765500667882,-3418.631879,0.00038356,56]
[398294715,1765500667891,-3418.631879,0.00038356,56]
[398294716,1765500667901,-3418.631879,0.00038356,56]
[398294717,1765500667910,-3418.631884,0.00038356,56]
[398294718,1765500667920,-300.0,0.00038356,28]
[398294719,1765500667929,-502.07765579,0.00038373,5]
[398294720,1765500667939,-500.0,0.00038373,5]
[398294721,1765500667948,-236.42581343,0.00038373,5]
[398294722,1765500667958,-500.0,0.00038373,5]
[398294723,1765500667967,-500.0,0.00038373,5]
[398294724,1765500667976,-500.0,0.00038373,5]
[398294725,1765500667986,-500.0,0.00038373,5]
[398294726,1765500667996,-500.0,0.00038373,5]
[398294727,1765500668006,-500.0,0.00038373,5]
[398294728,1765500668015,-500.0,0.00038373,5]
[398294729,1765500668025,-500.0,0.00038373,5]
[398294730,1765500668035,-500.0,0.00038373,5]
[398294731,1765500668045,-306.56456006,0.00038373,5]
[398294732,1765500668130,-500.0,0.00038373,5]
[398294733,1765500668140,-500.0,0.00038373,5]
[398294734,1765500668150,-200.0,0.00038373,5]
[398294735,1765500668159,-500.0,0.00038373,5]
[398294736,1765500668169,-1000.0,0.00038383,120]
[398294737,1765500668179,-1000.0,0.00038389,14]
[398294738,1765500668188,-1000.0,0.0003841,120]
[398294739,1765500668198,-533.72293491,0.00038438,120]
[398294740,1765500668208,-276.00720004,0.00038454,30]
[398294741,1765500668218,-1040.3,0.00038461,120]
[398294742,1765500668227,-1346.02056,0.00038488,30]
[398294743,1765500668237,-177.0015656,0.000385,30]
[398294744,1765500668247,-212.73599982,0.0003855,120]
[398294745,1765500668257,-1124.15080657,0.0003855,120]
[398294746,1765500668266,-217.21916215,0.0003855,120]
[398294747,1765500668276,-150.0,0.0003861,30]
[398294748,1765500668286,-150.0,0.0003861,30]
[398294749,1765500668295,-300.0,0.0003863,120]
[398294750,1765500668305,-1332.37,0.0003863,120]
[398294751,1765500668314,-799.72,0.0003863,2]
[398294752,1765500668324,-356.2,0.0003863,2]
[398294753,1765500668334,-552.86,0.0003863,2]
[398294754,1765500668344,-552.86,0.0003863,2]
[398294755,1765500668354,-552.86,0.0003863,2]
[398294756,1765500668364,-552.36,0.0003863,2]
[398294757,1765500668375,-552.69,0.0003863,2]
[398294758,1765500668387,-356.15,0.0003863,2]
[398294759,1765500668396,-150.0,0.0003863,2]
[398294760,1765500668406,-301.17,0.0003863,2]
[398294761,1765500668416,-150.0,0.0003863,2]
[398294762,1765500668427,-300.57,0.0003863,2]
[398294763,1765500668437,-1216.3,0.0003863,2]
[398294764,1765500668447,-342.62,0.0003863,2]
[398294765,1765500668458,-1216.3,0.0003863,2]
[398294766,1765500668467,-2432.21,0.0003863,2]
[398294767,1765500668477,-178.09,0.0003863,2]
[398294768,1765500668487,-1999.0,0.00038663,14]